{"text_format":"3","workbook":"xlsx","n_sheets":14,"sheets":["sfaturi","rezumat","ian","feb","mar","apr","mai","iun","iul","aug","sep","oct","nov","dec"],"not_rendered":{"charts":1,"defined_names":27},"read":"whole","date_system":"1900"}

{"sheet":"sfaturi","index":0,"n_rows":18,"n_cols":1,"rows_kept":18}
["SFATURI PENTRU ȘABLON"]
["Există o modalitate simplă de a comuta de la foaia de rezumat Tendințe cheltuieli la detaliile despre cheltuielile lunare?"]
["Pentru a naviga rapid la cheltuielile dintr-o anumită lună, faceți clic pe linkul de navigare asociat aflat deasupra diagramei, cum ar fi linkul de navigare Ian din B2. Apoi, pentru a reveni la foaia de lucru Tendințe cheltuieli, faceți clic pe linkul de navigare Rezumat din D1. "]
["Pentru a reveni la această foaie de lucru cu sfaturi, în foaia de lucru de rezumat, selectați N2. Din foile de lucru cu toate lunile, selectați E1."]
["Cum adaug un nou tip de cheltuieli la Rezumat cheltuieli sau la cheltuielile lunare noi?"]
["Rezumatul de cheltuieli de sub diagramă și detaliile despre cheltuieli pentru fiecare lună sunt tabele Excel. Pentru a adăuga rânduri noi la orice tabel Excel, alegeți una dintre următoarele:"]
[{"$f":"ROW(A1)&\". Dacă tabelul nu are un rând Total, începeți să tastați sub tabel și acesta se va extinde automat atunci când apăsați tasta Enter sau Tab.\"","v":"1. Dacă tabelul nu are un rând Total, începeți să tastați sub tabel și acesta se va extinde automat atunci când apăsați tasta Enter sau Tab."}]
[{"$f":"ROW(A2)&\". Plasați indicatorul de celulă în ultima celulă de deasupra rândului Totaluri, cum ar fi totalul pentru ultima cheltuială, apoi apăsați tasta Tab.\"","v":"2. Plasați indicatorul de celulă în ultima celulă de deasupra rândului Totaluri, cum ar fi totalul pentru ultima cheltuială, apoi apăsați tasta Tab."}]
[{"$f":"ROW(A3)&\". Faceți clic dreapta în tabel, iar în meniul pop-up indicați spre Inserare și faceți clic pe Rânduri tabel deasupra sau Rânduri tabel dedesubt.\"","v":"3. Faceți clic dreapta în tabel, iar în meniul pop-up indicați spre Inserare și faceți clic pe Rânduri tabel deasupra sau Rânduri tabel dedesubt."}]
[{"$f":"ROW(A4)&\". În colțul din dreapta jos al tabelului, plasați mouse-ul pe ghidajul de dimensionare a tabelului și glisați în jos pentru a mări numărul de rânduri de tabel disponibile.\"","v":"4. În colțul din dreapta jos al tabelului, plasați mouse-ul pe ghidajul de dimensionare a tabelului și glisați în jos pentru a mări numărul de rânduri de tabel disponibile."}]
["Introduceți cheltuielile în foaia de lucru Rezumat, în RezumatCheltuieli, coloana Cheltuieli."]
["Adăugați suma cheltuită pentru fiecare tip de cheltuieli din foaia de lucru de lună la care se aplică cheltuielile."]
["De exemplu: „Cheltuieli 1” apare în lunile Ian - Iun și Dec. "]
[{"$f":"ROW(A1)&\". Cheltuiala 1 este introdusă în foaia de lucru rezumat sub Cheltuieli, în tabelul RezumatCheltuieli (ca titlu pentru tipul de cheltuieli)\"","v":"1. Cheltuiala 1 este introdusă în foaia de lucru rezumat sub Cheltuieli, în tabelul RezumatCheltuieli (ca titlu pentru tipul de cheltuieli)"}]
[{"$f":"ROW(A2)&\". Pentru fiecare lună în care apare cheltuiala, introduceți cantitatea pentru cheltuiala din foaia de lucru a lunii corespunzătoare.\"","v":"2. Pentru fiecare lună în care apare cheltuiala, introduceți cantitatea pentru cheltuiala din foaia de lucru a lunii corespunzătoare."}]
[{"$f":"ROW(A3)&\". Tipul de cheltuieli din foaia de lucru RezumatCheltuieli creează o listă de categorii pentru coloana Categorie din foaia de lucru a fiecărei luni.\"","v":"3. Tipul de cheltuieli din foaia de lucru RezumatCheltuieli creează o listă de categorii pentru coloana Categorie din foaia de lucru a fiecărei luni."}]
[{"$f":"ROW(A4)&\". Utilizați lista de categorii din coloana Categorie pentru a selecta tipul de cheltuieli corespunzătoare pentru volumul de cheltuieli introdus\"","v":"4. Utilizați lista de categorii din coloana Categorie pentru a selecta tipul de cheltuieli corespunzătoare pentru volumul de cheltuieli introdus"}]
[{"$f":"ROW(A5)&\". Pentru a adăuga cheltuieli noi pentru orice lună, adăugați un rând nou în tabelul RezumatCheltuieli din foaia de lucru rezumat, apoi introduceți detaliile de cheltuieli corespunzătoare în foaia de lucru a lunii pentru care se aplică.\"","v":"5. Pentru a adăuga cheltuieli noi pentru orice lună, adăugați un rând nou în tabelul RezumatCheltuieli din foaia de lucru rezumat, apoi introduceți detaliile de cheltuieli corespunzătoare în foaia de lucru a lunii pentru care se aplică."}]

{"sheet":"rezumat","index":1,"n_rows":10,"n_cols":15,"rows_kept":10}
["TENDINȚE CHELTUIELI"]
[null,"Ian","Feb","Mar","Apr","Mai","Iun","Iul","Aug","Sep","Oct","Nov","Dec","Sfaturi"]
[]
["Cheltuieli","Ian","Feb","Mar","Apr","Mai","Iun","Iul","Aug","Sep","Oct","Nov","Dec","Total","Tendință"]
["Cheltuială 1",{"$f":"SUMIFS(ChIan[Sumă], ChIan[Categorie], RezumatCheltuieli[[#This Row],[Cheltuieli]])","v":{"v":33,"d":"33.00"}},{"$f":"SUMIFS(ChFeb[Sumă], ChFeb[Categorie], RezumatCheltuieli[[#This Row],[Cheltuieli]])","v":{"v":375,"d":"375.00"}},{"$f":"SUMIFS(ChMar[Sumă], ChMar[Categorie], RezumatCheltuieli[[#This Row],[Cheltuieli]])","v":{"v":33,"d":"33.00"}},{"$f":"SUMIFS(ChApr[Sumă], ChApr[Categorie], RezumatCheltuieli[[#This Row],[Cheltuieli]])","v":{"v":45,"d":"45.00"}},{"$f":"SUMIFS(ChMai[Sumă], ChMai[Categorie], RezumatCheltuieli[[#This Row],[Cheltuieli]])","v":{"v":375,"d":"375.00"}},{"$f":"SUMIFS(ChIun[Sumă], ChIun[Categorie], RezumatCheltuieli[[#This Row],[Cheltuieli]])","v":{"v":201,"d":"201.00"}},{"$f":"SUMIFS(ChIul[Sumă], ChIul[Categorie], RezumatCheltuieli[[#This Row],[Cheltuieli]])","v":{"v":0,"d":"0.00"}},{"$f":"SUMIFS(ChAug[Sumă], ChAug[Categorie], RezumatCheltuieli[[#This Row],[Cheltuieli]])","v":{"v":0,"d":"0.00"}},{"$f":"SUMIFS(ChSep[Sumă], ChSep[Categorie], RezumatCheltuieli[[#This Row],[Cheltuieli]])","v":{"v":0,"d":"0.00"}},{"$f":"SUMIFS(ChOct[Sumă], ChOct[Categorie], RezumatCheltuieli[[#This Row],[Cheltuieli]])","v":{"v":0,"d":"0.00"}},{"$f":"SUMIFS(ChNov[Sumă], ChNov[Categorie], RezumatCheltuieli[[#This Row],[Cheltuieli]])","v":{"v":0,"d":"0.00"}},{"$f":"SUMIFS(ChDec[Sumă], ChDec[Categorie], RezumatCheltuieli[[#This Row],[Cheltuieli]])","v":{"v":201,"d":"201.00"}},{"$f":"SUM(RezumatCheltuieli[[#This Row],[Ian]:[Dec]])","v":{"v":1263,"d":"1,263.00"}}]
["Cheltuială 2",{"$f":"SUMIFS(ChIan[Sumă], ChIan[Categorie], RezumatCheltuieli[[#This Row],[Cheltuieli]])","v":{"v":238,"d":"238.00"}},{"$f":"SUMIFS(ChFeb[Sumă], ChFeb[Categorie], RezumatCheltuieli[[#This Row],[Cheltuieli]])","v":{"v":238,"d":"238.00"}},{"$f":"SUMIFS(ChMar[Sumă], ChMar[Categorie], RezumatCheltuieli[[#This Row],[Cheltuieli]])","v":{"v":238,"d":"238.00"}},{"$f":"SUMIFS(ChApr[Sumă], ChApr[Categorie], RezumatCheltuieli[[#This Row],[Cheltuieli]])","v":{"v":123,"d":"123.00"}},{"$f":"SUMIFS(ChMai[Sumă], ChMai[Categorie], RezumatCheltuieli[[#This Row],[Cheltuieli]])","v":{"v":111,"d":"111.00"}},{"$f":"SUMIFS(ChIun[Sumă], ChIun[Categorie], RezumatCheltuieli[[#This Row],[Cheltuieli]])","v":{"v":98,"d":"98.00"}},{"$f":"SUMIFS(ChIul[Sumă], ChIul[Categorie], RezumatCheltuieli[[#This Row],[Cheltuieli]])","v":{"v":0,"d":"0.00"}},{"$f":"SUMIFS(ChAug[Sumă], ChAug[Categorie], RezumatCheltuieli[[#This Row],[Cheltuieli]])","v":{"v":0,"d":"0.00"}},{"$f":"SUMIFS(ChSep[Sumă], ChSep[Categorie], RezumatCheltuieli[[#This Row],[Cheltuieli]])","v":{"v":0,"d":"0.00"}},{"$f":"SUMIFS(ChOct[Sumă], ChOct[Categorie], RezumatCheltuieli[[#This Row],[Cheltuieli]])","v":{"v":0,"d":"0.00"}},{"$f":"SUMIFS(ChNov[Sumă], ChNov[Categorie], RezumatCheltuieli[[#This Row],[Cheltuieli]])","v":{"v":0,"d":"0.00"}},{"$f":"SUMIFS(ChDec[Sumă], ChDec[Categorie], RezumatCheltuieli[[#This Row],[Cheltuieli]])","v":{"v":440,"d":"440.00"}},{"$f":"SUM(RezumatCheltuieli[[#This Row],[Ian]:[Dec]])","v":{"v":1486,"d":"1,486.00"}}]
["Cheltuială 3",{"$f":"SUMIFS(ChIan[Sumă], ChIan[Categorie], RezumatCheltuieli[[#This Row],[Cheltuieli]])","v":{"v":110,"d":"110.00"}},{"$f":"SUMIFS(ChFeb[Sumă], ChFeb[Categorie], RezumatCheltuieli[[#This Row],[Cheltuieli]])","v":{"v":110,"d":"110.00"}},{"$f":"SUMIFS(ChMar[Sumă], ChMar[Categorie], RezumatCheltuieli[[#This Row],[Cheltuieli]])","v":{"v":110,"d":"110.00"}},{"$f":"SUMIFS(ChApr[Sumă], ChApr[Categorie], RezumatCheltuieli[[#This Row],[Cheltuieli]])","v":{"v":125,"d":"125.00"}},{"$f":"SUMIFS(ChMai[Sumă], ChMai[Categorie], RezumatCheltuieli[[#This Row],[Cheltuieli]])","v":{"v":333,"d":"333.00"}},{"$f":"SUMIFS(ChIun[Sumă], ChIun[Categorie], RezumatCheltuieli[[#This Row],[Cheltuieli]])","v":{"v":122,"d":"122.00"}},{"$f":"SUMIFS(ChIul[Sumă], ChIul[Categorie], RezumatCheltuieli[[#This Row],[Cheltuieli]])","v":{"v":0,"d":"0.00"}},{"$f":"SUMIFS(ChAug[Sumă], ChAug[Categorie], RezumatCheltuieli[[#This Row],[Cheltuieli]])","v":{"v":0,"d":"0.00"}},{"$f":"SUMIFS(ChSep[Sumă], ChSep[Categorie], RezumatCheltuieli[[#This Row],[Cheltuieli]])","v":{"v":0,"d":"0.00"}},{"$f":"SUMIFS(ChOct[Sumă], ChOct[Categorie], RezumatCheltuieli[[#This Row],[Cheltuieli]])","v":{"v":0,"d":"0.00"}},{"$f":"SUMIFS(ChNov[Sumă], ChNov[Categorie], RezumatCheltuieli[[#This Row],[Cheltuieli]])","v":{"v":0,"d":"0.00"}},{"$f":"SUMIFS(ChDec[Sumă], ChDec[Categorie], RezumatCheltuieli[[#This Row],[Cheltuieli]])","v":{"v":122,"d":"122.00"}},{"$f":"SUM(RezumatCheltuieli[[#This Row],[Ian]:[Dec]])","v":{"v":1032,"d":"1,032.00"}}]
["Cheltuială 4",{"$f":"SUMIFS(ChIan[Sumă], ChIan[Categorie], RezumatCheltuieli[[#This Row],[Cheltuieli]])","v":{"v":426,"d":"426.00"}},{"$f":"SUMIFS(ChFeb[Sumă], ChFeb[Categorie], RezumatCheltuieli[[#This Row],[Cheltuieli]])","v":{"v":84,"d":"84.00"}},{"$f":"SUMIFS(ChMar[Sumă], ChMar[Categorie], RezumatCheltuieli[[#This Row],[Cheltuieli]])","v":{"v":84,"d":"84.00"}},{"$f":"SUMIFS(ChApr[Sumă], ChApr[Categorie], RezumatCheltuieli[[#This Row],[Cheltuieli]])","v":{"v":426,"d":"426.00"}},{"$f":"SUMIFS(ChMai[Sumă], ChMai[Categorie], RezumatCheltuieli[[#This Row],[Cheltuieli]])","v":{"v":125,"d":"125.00"}},{"$f":"SUMIFS(ChIun[Sumă], ChIun[Categorie], RezumatCheltuieli[[#This Row],[Cheltuieli]])","v":{"v":187,"d":"187.00"}},{"$f":"SUMIFS(ChIul[Sumă], ChIul[Categorie], RezumatCheltuieli[[#This Row],[Cheltuieli]])","v":{"v":0,"d":"0.00"}},{"$f":"SUMIFS(ChAug[Sumă], ChAug[Categorie], RezumatCheltuieli[[#This Row],[Cheltuieli]])","v":{"v":0,"d":"0.00"}},{"$f":"SUMIFS(ChSep[Sumă], ChSep[Categorie], RezumatCheltuieli[[#This Row],[Cheltuieli]])","v":{"v":0,"d":"0.00"}},{"$f":"SUMIFS(ChOct[Sumă], ChOct[Categorie], RezumatCheltuieli[[#This Row],[Cheltuieli]])","v":{"v":0,"d":"0.00"}},{"$f":"SUMIFS(ChNov[Sumă], ChNov[Categorie], RezumatCheltuieli[[#This Row],[Cheltuieli]])","v":{"v":0,"d":"0.00"}},{"$f":"SUMIFS(ChDec[Sumă], ChDec[Categorie], RezumatCheltuieli[[#This Row],[Cheltuieli]])","v":{"v":187,"d":"187.00"}},{"$f":"SUM(RezumatCheltuieli[[#This Row],[Ian]:[Dec]])","v":{"v":1519,"d":"1,519.00"}}]
["Cheltuială 5",{"$f":"SUMIFS(ChIan[Sumă], ChIan[Categorie], RezumatCheltuieli[[#This Row],[Cheltuieli]])","v":{"v":54,"d":"54.00"}},{"$f":"SUMIFS(ChFeb[Sumă], ChFeb[Categorie], RezumatCheltuieli[[#This Row],[Cheltuieli]])","v":{"v":54,"d":"54.00"}},{"$f":"SUMIFS(ChMar[Sumă], ChMar[Categorie], RezumatCheltuieli[[#This Row],[Cheltuieli]])","v":{"v":109,"d":"109.00"}},{"$f":"SUMIFS(ChApr[Sumă], ChApr[Categorie], RezumatCheltuieli[[#This Row],[Cheltuieli]])","v":{"v":98,"d":"98.00"}},{"$f":"SUMIFS(ChMai[Sumă], ChMai[Categorie], RezumatCheltuieli[[#This Row],[Cheltuieli]])","v":{"v":33,"d":"33.00"}},{"$f":"SUMIFS(ChIun[Sumă], ChIun[Categorie], RezumatCheltuieli[[#This Row],[Cheltuieli]])","v":{"v":441,"d":"441.00"}},{"$f":"SUMIFS(ChIul[Sumă], ChIul[Categorie], RezumatCheltuieli[[#This Row],[Cheltuieli]])","v":{"v":0,"d":"0.00"}},{"$f":"SUMIFS(ChAug[Sumă], ChAug[Categorie], RezumatCheltuieli[[#This Row],[Cheltuieli]])","v":{"v":0,"d":"0.00"}},{"$f":"SUMIFS(ChSep[Sumă], ChSep[Categorie], RezumatCheltuieli[[#This Row],[Cheltuieli]])","v":{"v":0,"d":"0.00"}},{"$f":"SUMIFS(ChOct[Sumă], ChOct[Categorie], RezumatCheltuieli[[#This Row],[Cheltuieli]])","v":{"v":0,"d":"0.00"}},{"$f":"SUMIFS(ChNov[Sumă], ChNov[Categorie], RezumatCheltuieli[[#This Row],[Cheltuieli]])","v":{"v":0,"d":"0.00"}},{"$f":"SUMIFS(ChDec[Sumă], ChDec[Categorie], RezumatCheltuieli[[#This Row],[Cheltuieli]])","v":{"v":99,"d":"99.00"}},{"$f":"SUM(RezumatCheltuieli[[#This Row],[Ian]:[Dec]])","v":{"v":888,"d":"888.00"}}]
["Total",{"$f":"SUBTOTAL(109,B5:B9)","v":{"v":861,"d":"861.00"}},{"v":861,"d":"861.00"},{"v":574,"d":"574.00"},{"v":817,"d":"817.00"},{"v":977,"d":"977.00"},{"v":1049,"d":"1,049.00"},{"v":0,"d":"0.00"},{"v":0,"d":"0.00"},{"v":0,"d":"0.00"},{"v":0,"d":"0.00"},{"v":0,"d":"0.00"},{"v":1049,"d":"1,049.00"},{"v":6188,"d":"6,188.00"}]

{"sheet":"ian","index":2,"n_rows":9,"n_cols":5,"rows_kept":9,"merged":[[0,0,0,2]]}
["CHELTUIELI IANUARIE",null,null,"Rezumat","Sfaturi"]
["Data","PO#","Sumă","Categorie","Descriere"]
[{"$f":"DATE(YEAR(TODAY()),1,4)","v":"2017-01-04"},"A-12345",{"v":33,"d":"33.00"},"Cheltuială 1","Consumabile"]
[{"$f":"DATE(YEAR(TODAY()),1,5)","v":"2017-01-05"},"A-12346",{"v":238,"d":"238.00"},"Cheltuială 2"]
[null,null,{"v":342,"d":"342.00"},"Cheltuială 4"]
[null,null,{"v":110,"d":"110.00"},"Cheltuială 3"]
[null,null,{"v":84,"d":"84.00"},"Cheltuială 4"]
[null,null,{"v":54,"d":"54.00"},"Cheltuială 5"]
["Total",null,{"$f":"SUBTOTAL(109,ChIan[Sumă])","v":{"v":861,"d":"861.00"}}]

{"sheet":"feb","index":3,"n_rows":9,"n_cols":5,"rows_kept":9,"merged":[[0,0,0,2]]}
["CHELTUIELI FEBRUARIE",null,null,"Rezumat","Sfaturi"]
["Data","PO#","Sumă","Categorie","Descriere"]
[{"$f":"DATE(YEAR(TODAY()),2,3)","v":"2017-02-03"},"A-12345",{"v":33,"d":"33.00"},"Cheltuială 1","Consumabile"]
[{"$f":"DATE(YEAR(TODAY()),2,4)","v":"2017-02-04"},"A-12346",{"v":238,"d":"238.00"},"Cheltuială 2"]
[null,null,{"v":342,"d":"342.00"},"Cheltuială 1"]
[null,null,{"v":110,"d":"110.00"},"Cheltuială 3"]
[null,null,{"v":84,"d":"84.00"},"Cheltuială 4"]
[null,null,{"v":54,"d":"54.00"},"Cheltuială 5"]
["Total",null,{"$f":"SUBTOTAL(109,ChFeb[Sumă])","v":{"v":861,"d":"861.00"}}]

{"sheet":"mar","index":4,"n_rows":9,"n_cols":5,"rows_kept":9,"merged":[[0,0,0,2]]}
["CHELTUIELI MARTIE",null,null,"Rezumat","Sfaturi"]
["Data","PO#","Sumă","Categorie","Descriere"]
[{"$f":"DATE(YEAR(TODAY()),3,5)","v":"2017-03-05"},"A-12345",{"v":33,"d":"33.00"},"Cheltuială 1","Consumabile"]
[{"$f":"DATE(YEAR(TODAY()),3,6)","v":"2017-03-06"},"A-12346",{"v":238,"d":"238.00"},"Cheltuială 2"]
[null,null,{"v":55,"d":"55.00"},"Cheltuială 5"]
[null,null,{"v":110,"d":"110.00"},"Cheltuială 3"]
[null,null,{"v":84,"d":"84.00"},"Cheltuială 4"]
[null,null,{"v":54,"d":"54.00"},"Cheltuială 5"]
["Total",null,{"$f":"SUBTOTAL(109,ChMar[Sumă])","v":{"v":574,"d":"574.00"}}]

{"sheet":"apr","index":5,"n_rows":9,"n_cols":5,"rows_kept":9,"merged":[[0,0,0,2]]}
["CHELTUIELI APRILIE",null,null,"Rezumat","Sfaturi"]
["Data","PO#","Sumă","Categorie","Descriere"]
[{"$f":"DATE(YEAR(TODAY()),4,4)","v":"2017-04-04"},"A-12345",{"v":45,"d":"45.00"},"Cheltuială 1","Consumabile"]
[{"$f":"DATE(YEAR(TODAY()),4,8)","v":"2017-04-08"},"A-12346",{"v":123,"d":"123.00"},"Cheltuială 2"]
[null,null,{"v":342,"d":"342.00"},"Cheltuială 4"]
[null,null,{"v":125,"d":"125.00"},"Cheltuială 3"]
[null,null,{"v":84,"d":"84.00"},"Cheltuială 4"]
[null,null,{"v":98,"d":"98.00"},"Cheltuială 5"]
["Total",null,{"$f":"SUBTOTAL(109,ChApr[Sumă])","v":{"v":817,"d":"817.00"}}]

{"sheet":"mai","index":6,"n_rows":9,"n_cols":5,"rows_kept":9,"merged":[[0,0,0,2]]}
["CHELTUIELI MAI",null,null,"Rezumat","Sfaturi"]
["Data","PO#","Sumă","Categorie","Descriere"]
[{"$f":"DATE(YEAR(TODAY()),5,3)","v":"2017-05-03"},"A-12345",{"v":33,"d":"33.00"},"Cheltuială 1","Consumabile"]
[{"$f":"DATE(YEAR(TODAY()),5,8)","v":"2017-05-08"},"A-12346",{"v":111,"d":"111.00"},"Cheltuială 2"]
[null,null,{"v":342,"d":"342.00"},"Cheltuială 1"]
[null,null,{"v":333,"d":"333.00"},"Cheltuială 3"]
[null,null,{"v":125,"d":"125.00"},"Cheltuială 4"]
[null,null,{"v":33,"d":"33.00"},"Cheltuială 5"]
["Total",null,{"$f":"SUBTOTAL(109,ChMai[Sumă])","v":{"v":977,"d":"977.00"}}]

{"sheet":"iun","index":7,"n_rows":9,"n_cols":5,"rows_kept":9,"merged":[[0,0,0,2]]}
["CHELTUIELI IUNIE",null,null,"Rezumat","Sfaturi"]
["Data","PO#","Sumă","Categorie","Descriere"]
[{"$f":"DATE(YEAR(TODAY()),6,7)","v":"2017-06-07"},"A-12345",{"v":201,"d":"201.00"},"Cheltuială 1","Consumabile"]
[{"$f":"DATE(YEAR(TODAY()),6,8)","v":"2017-06-08"},"A-12346",{"v":98,"d":"98.00"},"Cheltuială 2"]
[null,null,{"v":342,"d":"342.00"},"Cheltuială 5"]
[null,null,{"v":122,"d":"122.00"},"Cheltuială 3"]
[null,null,{"v":187,"d":"187.00"},"Cheltuială 4"]
[null,null,{"v":99,"d":"99.00"},"Cheltuială 5"]
["Total",null,{"$f":"SUBTOTAL(109,ChIun[Sumă])","v":{"v":1049,"d":"1,049.00"}}]

{"sheet":"iul","index":8,"n_rows":9,"n_cols":5,"rows_kept":9,"merged":[[0,0,0,2]]}
["CHELTUIELI IULIE",null,null,"Rezumat","Sfaturi"]
["Data","PO#","Sumă","Categorie","Descriere"]
[{"$f":"DATE(YEAR(TODAY()),7,9)","v":"2017-07-09"},"A-12345",null,"Cheltuială 1","Consumabile"]
[{"$f":"DATE(YEAR(TODAY()),7,14)","v":"2017-07-14"},"A-12346",null,"Cheltuială 2"]
[{"$nulls":3},"Cheltuială 2"]
[{"$nulls":3},"Cheltuială 3"]
[{"$nulls":3},"Cheltuială 4"]
[{"$nulls":3},"Cheltuială 5"]
["Total",null,{"$f":"SUBTOTAL(109,ChIul[Sumă])","v":{"v":0,"d":"0.00"}}]

{"sheet":"aug","index":9,"n_rows":9,"n_cols":5,"rows_kept":9,"merged":[[0,0,0,2]]}
["CHELTUIELI AUGUST",null,null,"Rezumat","Sfaturi"]
["Data","PO#","Sumă","Categorie","Descriere"]
[{"$f":"DATE(YEAR(TODAY()),8,8)","v":"2017-08-08"},"A-12345",null,"Cheltuială 1","Consumabile"]
[{"$f":"DATE(YEAR(TODAY()),8,9)","v":"2017-08-09"},"A-12346",null,"Cheltuială 2"]
[{"$nulls":3},"Cheltuială 2"]
[{"$nulls":3},"Cheltuială 3"]
[{"$nulls":3},"Cheltuială 4"]
[{"$nulls":3},"Cheltuială 5"]
["Total",null,{"$f":"SUBTOTAL(109,ChAug[Sumă])","v":{"v":0,"d":"0.00"}}]

{"sheet":"sep","index":10,"n_rows":9,"n_cols":5,"rows_kept":9,"merged":[[0,0,0,2]]}
["CHELTUIELI SEPTEMBRIE",null,null,"Rezumat","Sfaturi"]
["Data","PO#","Sumă","Categorie","Descriere"]
[{"$f":"DATE(YEAR(TODAY()),9,9)","v":"2017-09-09"},"A-12345",null,"Cheltuială 1","Consumabile"]
[{"$f":"DATE(YEAR(TODAY()),9,15)","v":"2017-09-15"},"A-12346",null,"Cheltuială 2"]
[{"$nulls":3},"Cheltuială 2"]
[{"$nulls":3},"Cheltuială 3"]
[{"$nulls":3},"Cheltuială 4"]
[{"$nulls":3},"Cheltuială 5"]
["Total",null,{"$f":"SUBTOTAL(109,ChSep[Sumă])","v":{"v":0,"d":"0.00"}}]

{"sheet":"oct","index":11,"n_rows":9,"n_cols":5,"rows_kept":9,"merged":[[0,0,0,2]]}
["CHELTUIELI OCTOMBRIE",null,null,"Rezumat","Sfaturi"]
["Data","PO#","Sumă","Categorie","Descriere"]
[{"$f":"DATE(YEAR(TODAY()),10,10)","v":"2017-10-10"},"A-12345",null,"Cheltuială 1","Consumabile"]
[{"$f":"DATE(YEAR(TODAY()),10,21)","v":"2017-10-21"},"A-12346",null,"Cheltuială 2"]
[{"$nulls":3},"Cheltuială 2"]
[{"$nulls":3},"Cheltuială 3"]
[{"$nulls":3},"Cheltuială 4"]
[{"$nulls":3},"Cheltuială 5"]
["Total",null,{"$f":"SUBTOTAL(109,ChOct[Sumă])","v":{"v":0,"d":"0.00"}}]

{"sheet":"nov","index":12,"n_rows":9,"n_cols":5,"rows_kept":9,"merged":[[0,0,0,2]]}
["CHELTUIELI NOIEMBRIE",null,null,"Rezumat","Sfaturi"]
["Data","PO#","Sumă","Categorie","Descriere"]
[{"$f":"DATE(YEAR(TODAY()),11,14)","v":"2017-11-14"},"A-12345",null,"Cheltuială 1","Consumabile"]
[{"$f":"DATE(YEAR(TODAY()),11,21)","v":"2017-11-21"},"A-12346",null,"Cheltuială 2"]
[{"$nulls":3},"Cheltuială 2"]
[{"$nulls":3},"Cheltuială 3"]
[{"$nulls":3},"Cheltuială 4"]
[{"$nulls":3},"Cheltuială 5"]
["Total",null,{"$f":"SUBTOTAL(109,ChNov[Sumă])","v":{"v":0,"d":"0.00"}}]

{"sheet":"dec","index":13,"n_rows":9,"n_cols":5,"rows_kept":9,"merged":[[0,0,0,2]]}
["CHELTUIELI DECEMBRIE",null,null,"Rezumat","Sfaturi"]
["Data","PO#","Sumă","Categorie","Descriere"]
[{"$f":"DATE(YEAR(TODAY()),12,2)","v":"2017-12-02"},"A-12345",{"v":201,"d":"201.00"},"Cheltuială 1","Consumabile"]
[{"$f":"DATE(YEAR(TODAY()),12,24)","v":"2017-12-24"},"A-12346",{"v":98,"d":"98.00"},"Cheltuială 2"]
[null,null,{"v":342,"d":"342.00"},"Cheltuială 2"]
[null,null,{"v":122,"d":"122.00"},"Cheltuială 3"]
[null,null,{"v":187,"d":"187.00"},"Cheltuială 4"]
[null,null,{"v":99,"d":"99.00"},"Cheltuială 5"]
["Total",null,{"$f":"SUBTOTAL(109,ChDec[Sumă])","v":{"v":1049,"d":"1,049.00"}}]